bitfinex/quotes_SOLUSD_20220117
["timestamp","ask_amount","ask_price","bid_price","bid_amount"]
[1642408428101,1.81751264,143.12,143.03,42.1548]
[1642408428298,7.81751264,143.12,143.03,42.1548]
[1642408428700,7.81751264,143.12,143.04,10.12]
[1642408428899,7.81751264,143.12,143.05,24.988]
[1642408429100,7.81751264,143.12,143.05,25.238]
[1642408429101,6.0,143.12,143.05,25.238]
[1642408429299,7.81751264,143.13,143.05,25.238]
[1642408429499,1.81751264,143.13,143.05,25.238]
[1642408429701,7.81751264,143.13,143.05,25.238]
[1642408430101,6.0,143.13,143.05,25.238]
[1642408430302,7.81751264,143.16,143.05,25.238]
[1642408430503,23.5195,143.15,143.07,35.50454789]
[1642408430908,29.5195,143.15,143.08,0.25]
[1642408431105,29.5195,143.15,143.08,22.8941]
[1642408431303,23.5195,143.15,143.08,22.8941]
[1642408432603,12.29961264,143.16,143.08,22.8941]
[1642408432811,0.25,143.15,143.08,22.8941]
[1642408433509,1.81751264,143.16,143.08,22.8941]
[1642408433707,1.81751264,143.16,143.08,41.0533]
[1642408433904,1.81751264,143.16,143.09,10.12]
[1642408434303,1.81751264,143.16,143.1,0.25]
[1642408434707,1.81751264,143.18,143.1,24.2181]
[1642408435406,1.81751264,143.18,143.11,10.478]
[1642408435606,1.81751264,143.18,143.13,45.63736091]
[1642408436212,1.81751264,143.19,143.13,45.63736091]
[1642408438415,0.25,143.18,143.13,45.63736091]
[1642408443417,0.25,143.19,143.13,45.63736091]
[1642408445620,1.81751264,143.2,143.14,0.25]
[1642408446322,1.81751264,143.21,143.14,23.0441]
[1642408447321,1.81751264,143.21,143.14,29.0441]
[1642408447521,6.0,143.21,143.14,29.0441]
[1642408448124,7.81751264,143.22,143.14,29.0441]
[1642408448320,0.25,143.21,143.14,29.0441]
[1642408448824,1.81751264,143.22,143.14,49.64]
[1642408449021,1.81751264,143.22,143.14,55.719]
[1642408450023,3.45014703,143.24,143.14,55.719]
[1642408450223,3.45014703,143.24,143.14,49.64]
[1642408451123,1.63263439,143.24,143.14,49.64]
[1642408454749,1.81751264,143.26,143.14,50.89375303]
[1642408455151,1.81751264,143.26,143.15,69.76]
[1642408455350,1.81751264,143.26,143.18,10.4716]
[1642408455550,1.81751264,143.26,143.19,34.0054]
[1642408455752,1.81751264,143.28,143.19,86.80456946]
[1642408456149,7.81751264,143.28,143.19,94.57156946]
[1642408456953,6.0,143.28,143.19,94.57156946]
[1642408457353,81.55238603,143.31,143.19,86.80456946]
[1642408457553,81.55238603,143.31,143.2,10.4718]
[1642408457752,81.55238603,143.31,143.21,10.37]
[1642408457953,81.55238603,143.31,143.22,23.0637]
[1642408458152,81.55238603,143.31,143.19,62.66916946]
[1642408458452,81.55238603,143.31,143.19,46.54916946]
[1642408458655,0.25,143.3,143.19,46.54916946]
[1642408458853,10.4736,143.28,143.19,46.54916946]
[1642408459057,24.8852,143.27,143.19,46.54916946]
[1642408459253,31.1352,143.27,143.2,0.25]
[1642408459454,30.8852,143.27,143.2,0.25]
[1642408459653,24.8852,143.27,143.2,23.0302]
[1642408459853,12.28941264,143.3,143.2,23.0302]
[1642408460055,23.8486,143.29,143.2,23.0302]
[1642408460253,31.66611264,143.29,143.2,23.0302]
[1642408460866,0.25,143.28,143.2,33.5019]
[1642408461267,29.8486,143.29,143.2,33.5019]
[1642408461474,6.0,143.29,143.21,10.12]
[1642408461866,7.81751264,143.3,143.22,24.9851]
[1642408462268,1.81751264,143.3,143.23,10.4691]
[1642408462470,1.81751264,143.32,143.25,48.42067609]
[1642408462870,1.81751264,143.32,143.26,10.37]
[1642408463373,1.81751264,143.32,143.26,16.37]
[1642408463571,1.81751264,143.32,143.27,10.4658]
[1642408463772,1.81751264,143.36,143.28,10.37]
[1642408463972,1.81751264,143.36,143.28,18.364]
[1642408465571,22.5751,143.43,143.3,10.4641]
[1642408465572,1.81751264,143.4,143.3,10.4641]
[1642408465771,7.81751264,143.4,143.31,10.37]
[1642408465972,1.81751264,143.4,143.32,109.84531178]
[1642408466171,1.81751264,143.4,143.32,119.96531178]
[1642408466372,1.81751264,143.4,143.33,0.25]
[1642408466571,3.95868752,143.43,143.34,134.12]
[1642408466780,1.97716136,143.42,143.35,70.01]
[1642408466972,1.97716136,143.42,143.36,10.12]
[1642408467375,1.97716136,143.42,143.37,42.17429022]
[1642408467973,3.95868752,143.45,143.37,42.17429022]
[1642408468172,6.0,143.45,143.37,42.17429022]
[1642408468373,16.4603,143.46,143.37,42.17429022]
[1642408468572,57.2291261,143.46,143.37,42.17429022]
[1642408469172,16.4603,143.46,143.37,42.17429022]
[1642408471278,10.4603,143.46,143.37,42.17429022]
[1642408471774,413.92874423,143.48,143.37,52.63349022]
[1642408471978,419.92874423,143.48,143.37,62.75349022]
[1642408472384,0.25,143.47,143.37,62.75349022]
[1642408472580,409.46984423,143.48,143.37,62.75349022]
[1642408473482,6.0,143.48,143.37,62.75349022]
[1642408473880,7.42799946,143.5,143.37,68.75349022]
[1642408474081,7.42799946,143.5,143.38,23.0379]
[1642408474082,0.25,143.49,143.38,23.0379]
[1642408474281,0.25,143.49,143.39,0.25]
[1642408474483,10.7082,143.49,143.39,0.25]
[1642408474680,10.4582,143.49,143.39,0.25]
[1642408474882,16.4582,143.49,143.39,0.25]
[1642408475483,16.4582,143.49,143.4,42.11249438]
[1642408475885,16.4582,143.49,143.41,0.25]
[1642408478585,28.79283576,143.48,143.41,0.25]
[1642408479184,16.4582,143.49,143.41,0.25]
[1642408479385,0.25,143.48,143.4,5.0]
[1642408479612,10.7087,143.48,143.4,5.0]
[1642408479809,16.7087,143.48,143.4,5.0]
[1642408480412,16.7087,143.48,143.41,45.52648825]
[1642408480609,10.7087,143.48,143.41,45.52648825]
[1642408481012,16.7087,143.48,143.41,45.52648825]
[1642408481613,6.25,143.48,143.41,45.52648825]
[1642408481815,0.25,143.48,143.42,0.25]
[1642408482218,0.25,143.49,143.41,45.52648825]
[1642408482616,45.43129146,143.49,143.41,45.52648825]
[1642408482817,51.43129146,143.49,143.41,45.52648825]
[1642408483514,61.88939146,143.49,143.41,45.52648825]
[1642408484116,131.64939146,143.49,143.4,5.0]
[1642408485317,141.76939146,143.49,143.4,45.55451859]
[1642408485916,141.76939146,143.49,143.4,5.0]
[1642408486921,141.76939146,143.49,143.4,52.58215335]
[1642408488819,141.76939146,143.49,143.4,5.0]
[1642408489018,145.72807898,143.49,143.4,5.0]
[1642408489221,147.42885486,143.49,143.4,5.0]
[1642408490021,69.76,143.44,143.4,5.0]
[1642408490219,79.88,143.44,143.4,5.0]
[1642408490420,0.25,143.43,143.4,5.0]
[1642408490821,6.06439994,143.42,143.4,5.0]
[1642408491329,0.25,143.41,143.4,5.0]
[1642408492326,12.06439994,143.42,143.4,5.0]
[1642408493722,0.25,143.41,143.4,5.0]
[1642408496723,48.25,143.41,143.4,5.0]
[1642408497123,6.25,143.41,143.4,5.0]
[1642408498725,52.25,143.41,143.4,5.0]
[1642408499126,76.01,143.41,143.4,5.0]
[1642408499324,6.25,143.41,143.4,5.0]
[1642408499525,6.25,143.41,143.31,23.7856]
[1642408499726,10.7137,143.41,143.32,47.21601487]
[1642408499926,16.7137,143.41,143.32,47.46601487]
[1642408500627,6.25,143.41,143.32,47.46601487]
[1642408500832,0.25,143.41,143.32,47.46601487]
[1642408501126,6.25,143.41,143.33,35.1879]
[1642408501326,6.0,143.41,143.34,0.25]
[1642408501825,0.25,143.42,143.34,0.25]
[1642408502230,0.25,143.42,143.34,10.7114]
[1642408502429,0.25,143.42,143.35,41.13889504]
[1642408502829,3.95868752,143.43,143.36,0.25]
[1642408503229,3.95868752,143.45,143.36,0.25]
[1642408503430,3.95868752,143.45,143.36,10.7098]
[1642408503631,0.25,143.44,143.36,10.7098]
[1642408504032,3.95868752,143.45,143.36,10.7098]
[1642408504330,3.95868752,143.45,143.36,18.3058]
[1642408504529,9.95868752,143.45,143.36,18.3058]
[1642408504730,6.0,143.45,143.36,18.3058]
[1642408505136,9.95868752,143.47,143.36,18.3058]
[1642408505330,0.25,143.46,143.38,43.22212668]
[1642408505730,0.25,143.46,143.39,0.25]
[1642408505932,0.25,143.46,143.38,43.22212668]
[1642408506532,0.25,143.47,143.38,43.22212668]
[1642408506732,0.25,143.47,143.39,0.25]
[1642408506933,0.25,143.47,143.38,43.22212668]
[1642408507636,4.20868752,143.47,143.38,43.22212668]
[1642408507834,10.20868752,143.47,143.38,43.22212668]
[1642408508235,10.20868752,143.47,143.39,0.25]
[1642408508435,3.95868752,143.47,143.39,0.25]
[1642408509938,5.93605868,143.5,143.39,0.25]
[1642408509939,3.95868752,143.5,143.39,0.25]
[1642408510138,3.95868752,143.5,143.4,10.4572]
[1642408510335,3.95868752,143.5,143.41,0.25]
[1642408510536,9.95868752,143.5,143.41,0.25]
[1642408511539,6.0,143.5,143.42,10.4553]
[1642408511738,3.95868752,143.51,143.43,41.02040228]
[1642408511938,9.95868752,143.51,143.43,41.02040228]
[1642408512140,3.95868752,143.51,143.43,41.02040228]
[1642408512540,3.95868752,143.51,143.43,51.47500228]
[1642408512744,495.27440348,143.53,143.43,51.47500228]
[1642408512944,495.27440348,143.53,143.43,75.10900228]
[1642408513143,0.25,143.52,143.43,75.10900228]
[1642408513370,495.27440348,143.53,143.43,75.10900228]
[1642408513568,495.27440348,143.53,143.44,69.76]
[1642408513767,501.27440348,143.53,143.46,10.4518]
[1642408514169,491.31571596,143.53,143.47,0.25]
[1642408514369,491.31571596,143.53,143.46,46.91652759]
[1642408514770,491.31571596,143.53,143.47,0.25]
[1642408515469,3.95868752,143.56,143.47,10.7018]
[1642408515673,3.95868752,143.56,143.47,33.8866]
[1642408515869,10.4523,143.57,143.47,33.8866]
[1642408516072,0.25,143.55,143.47,33.8866]
[1642408516272,0.25,143.56,143.47,33.8866]
[1642408516471,10.4523,143.57,143.47,33.8866]
[1642408516873,3.95868752,143.58,143.47,33.8866]
[1642408517076,1.70077588,143.56,143.47,10.4518]
[1642408517273,14.54277588,143.56,143.46,46.91652759]
[1642408517676,1.70077588,143.55,143.46,46.91652759]
[1642408517877,7.95077588,143.55,143.46,46.91652759]
[1642408518077,16.7034,143.55,143.46,46.91652759]
[1642408518476,16.7034,143.55,143.46,70.30062759]
[1642408519079,16.7034,143.55,143.46,46.91652759]
[1642408519378,18.40417588,143.55,143.46,46.91652759]
[1642408519577,16.7034,143.55,143.46,46.91652759]
[1642408521377,26.8234,143.55,143.46,46.91652759]
[1642408522378,33.2704,143.55,143.41,34.1762]
[1642408522578,25.03087588,143.54,143.39,10.4576]
[1642408522778,10.4582,143.5,143.39,6.0]
[1642408522980,16.1182,143.5,143.39,6.0]
[1642408523181,0.25,143.49,143.37,16.12]
[1642408523380,48.49653155,143.49,143.38,41.64093439]
[1642408523780,54.49653155,143.49,143.38,47.64093439]
[1642408524379,10.4593,143.47,143.38,47.64093439]
[1642408524782,0.25,143.46,143.38,47.64093439]
[1642408525082,6.0,143.49,143.39,0.25]
[1642408525283,0.25,143.48,143.39,0.25]
[1642408525486,0.25,143.48,143.39,23.4049]
[1642408525881,0.25,143.48,143.39,29.4049]
[1642408526381,0.25,143.48,143.39,39.8624]
[1642408526581,10.458,143.49,143.39,39.6124]
[1642408526781,0.25,143.48,143.39,39.6124]
[1642408527383,6.0,143.49,143.4,70.01]
[1642408527582,29.7978,143.52,143.42,10.4556]
[1642408527783,0.25,143.51,143.42,10.4556]
[1642408528383,0.25,143.51,143.43,34.78597128]
[1642408528784,0.25,143.51,143.43,45.24077128]
[1642408528985,0.25,143.52,143.43,45.24077128]
[1642408529587,0.25,143.52,143.51,5.0]
[1642408529885,47.37706015,143.52,143.51,5.0]
[1642408530588,53.37706015,143.52,143.51,5.0]
[1642408530787,47.37706015,143.52,143.51,5.0]
[1642408530986,47.37706015,143.52,143.41,33.3555]
[1642408531187,57.83316015,143.52,143.42,40.95322255]
[1642408531787,63.83316015,143.52,143.42,40.95322255]
[1642408532187,65.53393603,143.52,143.38,10.12]
[1642408532387,10.4597,143.48,143.38,16.12]
[1642408532891,0.25,143.47,143.38,26.5784]
[1642408533091,0.25,143.47,143.39,36.42245338]
[1642408533288,0.25,143.47,143.39,42.42245338]
[1642408534293,5.7097,143.48,143.39,52.88015338]
[1642408534492,10.4573,143.5,143.39,52.88015338]
[1642408534695,10.4573,143.5,143.4,0.25]
[1642408534893,16.4573,143.5,143.4,0.25]
[1642408535393,16.4573,143.5,143.4,10.37]
[1642408535595,10.4573,143.5,143.4,16.37]
[1642408535994,55.47724773,143.52,143.4,26.8265]
[1642408536196,14.41458752,143.52,143.41,24.3116]
[1642408536398,0.25,143.51,143.41,24.3116]
[1642408537196,0.25,143.51,143.42,46.11261004]
[1642408537794,14.41458752,143.52,143.42,46.11261004]
[1642408538197,20.41458752,143.52,143.43,0.25]
[1642408538406,53.32552631,143.52,143.43,0.25]
[1642408538597,53.32552631,143.52,143.42,46.11261004]
[1642408538797,59.32552631,143.52,143.42,46.11261004]
[1642408539197,129.08552631,143.52,143.42,46.11261004]
[1642408539644,10.4579,143.49,143.41,24.3116]
[1642408539831,0.25,143.48,143.41,24.3116]
[1642408540633,0.25,143.48,143.42,46.37356699]
[1642408541032,0.25,143.5,143.42,46.37356699]
[1642408541834,10.7071,143.5,143.42,46.37356699]
[1642408542036,33.84703773,143.49,143.42,46.37356699]
[1642408542236,0.25,143.48,143.42,46.37356699]
[1642408542835,10.7087,143.48,143.38,10.12]
[1642408543044,10.7087,143.48,143.38,33.0422]
[1642408543239,16.9077,143.48,143.38,39.0422]
[1642408543740,10.4587,143.48,143.38,39.0422]
[1642408543938,3.95868752,143.49,143.39,0.25]
[1642408544138,3.95868752,143.49,143.4,10.12]
[1642408544338,3.95868752,143.49,143.41,0.25]
[1642408544637,3.95868752,143.49,143.41,38.16062516]
[1642408545042,6.0,143.51,143.42,10.12]
[1642408545339,9.95868752,143.53,143.43,0.25]
[1642408545538,9.95868752,143.53,143.44,10.4539]
[1642408545738,0.25,143.52,143.45,44.21287488]
[1642408546740,548.26949999,143.54,143.46,0.25]
[1642408546941,0.25,143.52,143.45,44.21287488]
[1642408547740,508.2183222,143.54,143.46,0.25]
[1642408547741,497.7639222,143.54,143.46,0.25]
[1642408548543,497.7639222,143.54,143.46,10.37]
[1642408548751,29.902589,143.53,143.46,10.12]
[1642408549142,35.902589,143.53,143.46,10.12]
[1642408549346,6.25,143.53,143.46,10.12]
[1642408549743,0.25,143.53,143.46,10.12]
[1642408549944,6.25,143.53,143.46,10.12]
[1642408550145,10.20868752,143.53,143.46,10.12]
[1642408552146,6.25,143.53,143.46,10.12]
[1642408552345,0.25,143.53,143.46,10.12]
[1642408552547,6.25,143.53,143.46,10.12]
[1642408553150,0.25,143.53,143.46,10.12]
[1642408553347,6.25,143.53,143.46,10.12]
[1642408553547,0.25,143.53,143.46,10.12]
[1642408553747,3.95868752,143.54,143.47,0.25]
[1642408553954,3.95868752,143.54,143.48,10.12]
[1642408554149,3.95868752,143.54,143.49,39.85013917]
[1642408555358,3.95868752,143.58,143.49,39.85013917]
[1642408555559,0.25,143.57,143.49,39.85013917]
[1642408555756,33.53346333,143.57,143.49,39.85013917]
[1642408557559,0.25,143.57,143.49,39.85013917]
[1642408557760,0.25,143.57,143.49,64.31793917]
[1642408563391,0.25,143.57,143.48,20.571]
[1642408563591,10.7021,143.57,143.46,33.3971]
[1642408563890,40.2826,143.57,143.46,33.3971]
[1642408564394,40.2826,143.57,143.47,37.37161346]
[1642408565590,114.00128752,143.57,143.47,37.37161346]
[1642408570199,114.00128752,143.57,143.46,47.6577]
[1642408570502,121.83228752,143.57,143.43,10.4546]
[1642408570701,133.6530634,143.57,143.41,32.8466]
[1642408570898,156.1753634,143.57,143.41,38.8466]
[1642408571100,156.1753634,143.57,143.41,32.8466]
[1642408571306,7.92699097,143.56,143.42,37.07727319]
[1642408571502,10.4557,143.52,143.43,24.422]
[1642408571903,0.25,143.51,143.43,24.422]
[1642408572104,0.25,143.51,143.42,37.07727319]
[1642408572603,10.7065,143.51,143.42,37.07727319]
[1642408572801,16.7065,143.51,143.42,37.07727319]
[1642408573402,16.7065,143.51,143.42,60.31777319]
[1642408575204,16.7065,143.51,143.42,37.07727319]
[1642408577207,69.76,143.5,143.42,37.07727319]
[1642408577410,48.26547845,143.49,143.42,37.07727319]
[1642408577609,48.51547845,143.49,143.41,10.12]
[1642408577813,48.51547845,143.49,143.39,24.2221]
[1642408577814,54.51547845,143.49,143.39,24.2221]
[1642408578008,78.49807845,143.49,143.39,24.2221]
[1642408578606,78.49807845,143.49,143.4,38.60228501]
[1642408579608,40.6906,143.49,143.4,38.60228501]
[1642408579811,40.6906,143.49,143.4,61.19568501]
[1642408585239,72.16729152,143.49,143.4,61.19568501]
[1642408586142,78.16729152,143.49,143.4,61.19568501]
[1642408586643,40.6906,143.49,143.4,61.19568501]
[1642408586842,42.67351817,143.49,143.4,61.19568501]
[1642408587842,42.42351817,143.49,143.4,61.19568501]
[1642408588642,40.4406,143.49,143.4,61.19568501]
[1642408589245,40.4406,143.49,143.4,22.5934]
[1642408589444,51.20851817,143.49,143.4,22.5934]
[1642408589748,0.25,143.48,143.4,22.5934]
[1642408589947,0.25,143.48,143.38,10.12]
[1642408590146,45.08949038,143.45,143.38,10.12]
[1642408590345,0.25,143.44,143.38,10.12]
[1642408591246,10.4595,143.47,143.38,10.12]
[1642408591448,1.98291817,143.48,143.38,32.9868]
[1642408591647,0.25,143.46,143.38,32.9868]
[1642408593557,0.25,143.46,143.38,43.4451]
[1642408597265,1.98291817,143.47,143.39,0.25]
[1642408597465,1.98291817,143.47,143.41,10.4558]
[1642408597870,1.98291817,143.47,143.42,47.55308988]
[1642408598065,1.98291817,143.48,143.42,57.92308988]
[1642408598265,1.98291817,143.48,143.43,23.6664]
[1642408599068,1.98291817,143.5,143.43,23.6664]
[1642408599466,1.98291817,143.5,143.43,34.1208]
[1642408600070,0.25,143.49,143.43,44.2408]
[1642408602569,1.98291817,143.5,143.43,44.2408]
[1642408602774,1.98291817,143.5,143.44,0.25]
[1642408603074,1.98291817,143.5,143.43,44.2408]
[1642408603271,1.98291817,143.5,143.44,0.25]
[1642408603494,1.98291817,143.5,143.44,10.704]
[1642408603697,1.98291817,143.5,143.45,37.87268401]
[1642408604594,1.98291817,143.5,143.45,48.32588401]
[1642408604995,1.98291817,143.5,143.46,0.25]
[1642408605799,1.98291817,143.51,143.46,10.4522]
[1642408605996,1.98291817,143.51,143.48,44.74921551]
[1642408606403,0.25,143.5,143.48,44.74921551]
[1642408606598,1.98291817,143.51,143.48,44.74921551]
[1642408607601,1.98291817,143.52,143.48,44.74921551]
[1642408607797,0.25,143.51,143.48,44.74921551]
[1642408608200,7.98291817,143.52,143.48,44.74921551]
[1642408609303,6.0,143.52,143.48,44.74921551]
[1642408609699,7.98291817,143.53,143.48,44.74921551]
[1642408609900,0.25,143.52,143.48,44.74921551]
[1642408611403,0.25,143.53,143.48,44.74921551]
[1642408613407,0.25,143.54,143.48,44.74921551]
[1642408614806,0.25,143.54,143.46,34.8255]
[1642408615009,0.25,143.54,143.46,24.3733]
[1642408615806,0.25,143.54,143.47,42.23357359]
[1642408616008,2.23291817,143.54,143.47,42.23357359]
[1642408616407,18.68701817,143.54,143.47,42.23357359]
[1642408616810,16.7041,143.54,143.47,42.23357359]
[1642408617808,18.68701817,143.54,143.47,42.23357359]
[1642408621309,1.98291817,143.53,143.47,42.23357359]
[1642408621710,0.25,143.52,143.47,42.23357359]
[1642408622611,1.98291817,143.53,143.47,42.23357359]
[1642408623110,1.98291817,143.54,143.47,42.23357359]
[1642408623310,1.98291817,143.54,143.48,23.4286]
[1642408624310,1.98291817,143.52,143.48,23.4286]
[1642408624611,1.98291817,143.52,143.47,42.23357359]
[1642408624810,0.25,143.51,143.47,42.23357359]
[1642408625311,1.98291817,143.52,143.47,42.23357359]
[1642408626914,0.25,143.51,143.47,42.23357359]
[1642408632117,0.25,143.51,143.47,52.68537359]
[1642408632319,3.95868752,143.55,143.48,58.0]
[1642408632520,3.95868752,143.55,143.48,64.126]
[1642408632820,3.95868752,143.55,143.48,75.50546422]
[1642408633019,3.95868752,143.55,143.48,99.52496422]
[1642408633420,387.34705211,143.56,143.48,108.7166]
[1642408633621,3.95868752,143.57,143.48,108.7166]
[1642408633836,0.25,143.56,143.48,108.7166]
[1642408634822,0.25,143.57,143.48,108.7166]
[1642408635522,34.2354,143.59,143.48,178.4766]
[1642408635523,27.74338752,143.59,143.48,178.4766]
[1642408635725,27.74338752,143.59,143.48,179.73606422]
[1642408635926,27.74338752,143.59,143.48,185.73606422]
[1642408636125,27.74338752,143.59,143.48,184.4766]
[1642408636527,23.7847,143.59,143.48,184.4766]
[1642408637158,0.25,143.58,143.48,184.4766]
[1642408637324,23.7847,143.59,143.48,184.4766]
[1642408637728,0.25,143.58,143.48,184.4766]
[1642408638730,0.25,143.58,143.48,178.6006]
[1642408638928,0.25,143.58,143.48,108.8406]
[1642408642934,10.7012,143.58,143.48,108.8406]
[1642408643234,29.91765456,143.57,143.48,108.8406]
[1642408643641,0.25,143.56,143.48,108.5906]
[1642408644978,0.25,143.57,143.48,108.5906]
[1642408645774,24.076,143.57,143.48,108.5906]
[1642408646674,30.076,143.57,143.48,108.5906]
[1642408648374,30.076,143.57,143.48,50.5906]
[1642408648574,40.5279,143.57,143.48,40.1395]
[1642408648775,40.5279,143.57,143.48,10.12]
[1642408650978,40.2779,143.57,143.48,10.12]
[1642408651981,69.76,143.56,143.48,10.12]
[1642408652185,10.4534,143.55,143.48,10.12]
[1642408652384,34.94180962,143.54,143.48,10.12]
[1642408652784,0.25,143.53,143.48,10.12]
[1642408653784,0.25,143.53,143.44,24.0635]
[1642408653984,25.1028,143.53,143.45,23.215]
[1642408654287,31.1028,143.53,143.45,23.215]
[1642408654484,31.1028,143.53,143.45,66.09292888]
[1642408655084,31.1028,143.53,143.45,42.87792888]
[1642408655486,41.5578,143.53,143.45,42.87792888]
[1642408655685,41.5578,143.53,143.44,10.12]
[1642408656491,49.5448,143.53,143.44,10.12]
[1642408656691,49.5448,143.53,143.43,23.4081]
[1642408656894,49.5448,143.53,143.42,47.03688109]
[1642408657087,49.5448,143.53,143.41,20.5761]
[1642408657088,119.3048,143.53,143.41,10.12]
[1642408657488,121.00557588,143.53,143.41,10.12]
[1642408658589,41.5578,143.53,143.41,10.12]
[1642408658890,41.5578,143.53,143.42,0.25]
[1642408659092,45.51648752,143.53,143.43,47.38127514]
[1642408660492,45.51648752,143.53,143.44,24.579]
[1642408661191,41.5578,143.53,143.44,24.579]
[1642408663430,111.3178,143.53,143.44,24.579]
[1642408664229,41.5578,143.53,143.44,24.579]
[1642408664829,111.3178,143.53,143.44,24.579]
[1642408666529,41.5578,143.53,143.44,24.579]
[1642408667733,41.3078,143.53,143.44,24.579]
[1642408669331,0.25,143.52,143.44,24.579]
[1642408669831,10.7055,143.52,143.44,24.579]
[1642408670434,16.7055,143.52,143.44,24.579]
[1642408670632,39.79908507,143.51,143.44,24.579]
[1642408670832,0.25,143.5,143.44,24.579]
[1642408671132,0.25,143.5,143.43,47.38127514]
[1642408672535,10.707,143.5,143.43,47.38127514]
[1642408672841,16.707,143.5,143.43,47.38127514]
[1642408676442,16.707,143.5,143.41,34.3922]
[1642408676643,86.467,143.5,143.41,40.3922]
[1642408676844,16.707,143.5,143.41,40.3922]
[1642408677243,86.467,143.5,143.41,40.3922]
[1642408682045,16.707,143.5,143.41,40.3922]
[1642408685053,34.94180962,143.48,143.41,40.3922]
[1642408685250,0.25,143.47,143.41,40.3922]
[1642408685855,16.4582,143.48,143.41,40.3922]
[1642408686053,6.0,143.48,143.41,40.3922]
[1642408686251,33.80228752,143.53,143.41,40.3922]
[1642408686450,10.4573,143.5,143.41,40.3922]
[1642408687252,0.25,143.49,143.41,40.3922]
[1642408687452,0.25,143.49,143.41,50.8483]
[1642408690254,0.25,143.49,143.42,0.25]
[1642408690655,0.25,143.51,143.44,46.9652112]
[1642408690859,0.25,143.51,143.45,22.6617]
[1642408694559,39.0253,143.52,143.45,22.6617]
[1642408694861,0.25,143.51,143.45,22.6617]
[1642408695259,39.0253,143.52,143.45,22.6617]
[1642408696563,39.0253,143.52,143.46,0.25]
[1642408697364,39.0253,143.52,143.45,22.6617]
[1642408698466,10.4556,143.52,143.45,22.6617]
[1642408698667,3.95868752,143.56,143.46,10.37]
[1642408698867,4.20868752,143.55,143.46,10.37]
[1642408699065,4.20868752,143.55,143.46,17.902]
[1642408699265,4.20868752,143.55,143.46,23.902]
[1642408699465,3.95868752,143.55,143.48,43.86923163]
[1642408699666,3.95868752,143.55,143.48,53.98923163]
[1642408699867,33.17152843,143.55,143.48,53.98923163]
[1642408700072,3.95868752,143.55,143.49,10.4503]
[1642408700269,10.4515,143.58,143.49,10.4503]
[1642408700568,10.4515,143.58,143.5,23.9486]
[1642408701173,45.30185031,143.57,143.5,23.9486]
[1642408701978,0.25,143.56,143.5,23.9486]
[1642408702771,0.25,143.56,143.48,10.12]
[1642408702971,5.618,143.56,143.48,32.9677]
[1642408703171,13.31877588,143.56,143.48,32.9677]
[1642408703576,36.05297588,143.56,143.48,32.9677]
[1642408703975,69.76,143.55,143.48,32.9677]
[1642408704174,10.4546,143.53,143.48,10.12]
[1642408704373,0.25,143.52,143.48,10.12]
[1642408707102,0.25,143.53,143.48,10.12]
[1642408707904,0.25,143.53,143.46,47.6841]
[1642408708908,6.25,143.54,143.47,0.25]
[1642408709107,0.25,143.54,143.47,0.25]
[1642408709506,0.25,143.55,143.47,10.37]
[1642408709706,69.89945325,143.56,143.48,44.72909898]
[1642408709909,47.16525325,143.56,143.48,69.06599898]
[1642408710709,57.61795325,143.56,143.48,69.06599898]
[1642408711109,0.25,143.55,143.48,69.06599898]
[1642408713013,43.69928752,143.58,143.49,0.25]
[1642408713213,0.25,143.57,143.48,69.06599898]
[1642408713817,45.11172429,143.57,143.48,69.06599898]
[1642408714015,55.56362429,143.57,143.48,79.51709898]